bitfinex-derivatives/quotes_SOLF0:USTF0_20250901
["timestamp","ask_amount","ask_price","bid_price","bid_amount"]
[1756689182231,335.52,200.43,200.35,7.83]
[1756689184239,335.52,200.43,200.31,10.05234672]
[1756689185339,335.52,200.43,200.31,7.83]
[1756689185633,2.22234672,200.41,200.31,7.83]
[1756689185839,2.22234672,200.41,200.28,2.22234672]
[1756689186040,2.22234672,200.41,200.31,2.22234672]
[1756689186240,335.52,200.43,200.32,7.83]
[1756689186836,2.22234672,200.42,200.32,7.83]
[1756689188334,126.8,200.41,200.32,7.83]
[1756689188841,126.8,200.41,200.31,2.22234672]
[1756689189342,2.22234672,200.4,200.28,9.96234672]
[1756689190338,2.22234672,200.4,200.29,7.74]
[1756689191039,126.78,200.39,200.29,7.74]
[1756689191243,126.78,200.38,200.32,7.74]
[1756689193237,2.22234672,200.43,200.32,7.74]
[1756689193547,126.78,200.43,200.35,7.74]
[1756689194341,129.00234672,200.43,200.31,2.22234672]
[1756689194543,129.00234672,200.43,200.3,9.96234672]
[1756689200840,129.00234672,200.43,200.3,7.74]
[1756689201041,129.00234672,200.43,200.31,2.22234672]
[1756689201841,129.00234672,200.43,200.3,7.74]
[1756689202043,129.00234672,200.43,200.25,5.50957784]
[1756689202044,2.22234672,200.36,200.25,4.14624206]
[1756689202239,126.74,200.35,200.24,2.22234672]
[1756689202740,126.74,200.35,200.22,2.22234672]
[1756689202956,126.74,200.35,200.22,9.96234672]
[1756689203748,2.22234672,200.33,200.22,2.22234672]
[1756689204139,2.22234672,200.33,200.21,108.41759157]
[1756689206047,2.22234672,200.3,200.18,7.74]
[1756689206249,2.22234672,200.3,200.18,9.96234672]
[1756689206849,17.76,200.3,200.22,7.74]
[1756689208249,2.22234672,200.33,200.22,7.74]
[1756689208551,3.96,200.32,200.24,2.22234672]
[1756689208945,2.22234672,200.36,200.25,7.74]
[1756689209145,7.72,200.35,200.27,2.22234672]
[1756689210453,7.72,200.35,200.25,7.74]
[1756689212152,2.22234672,200.36,200.25,7.74]
[1756689212349,47.7,200.35,200.25,7.74]
[1756689214948,2.22234672,200.36,200.25,7.74]
[1756689215149,29.88,200.37,200.28,7.74]
[1756689215357,2.22234672,200.36,200.24,7.74]
[1756689215854,2.22234672,200.34,200.24,7.74]
[1756689219257,5.54163416,200.39,200.24,7.74]
[1756689219550,35.40234672,200.38,200.26,7.7]
[1756689221258,2.22234672,200.35,200.26,7.7]
[1756689222257,5.54163416,200.41,200.26,7.7]
[1756689222459,2.22234672,200.39,200.26,7.7]
[1756689222660,2.22234672,200.39,200.28,2.22234672]
[1756689222958,2.22234672,200.39,200.29,7.7]
[1756689223558,2.22234672,200.36,200.29,7.7]
[1756689224556,81.68,200.38,200.29,7.7]
[1756689225856,2.22234672,200.36,200.24,7.7]
[1756689227958,2.22234672,200.36,200.27,7.7]
[1756689230362,2.22234672,200.33,200.22,4.15119277]
[1756689230557,2.22234672,200.33,200.23,7.7]
[1756689232270,2.22234672,200.3,200.23,7.7]
[1756689232564,15.04234672,200.3,200.23,7.7]
[1756689233163,15.04234672,200.3,200.18,7.7]
[1756689233355,2.22234672,200.27,200.18,7.7]
[1756689234362,15.04234672,200.3,200.18,7.7]
[1756689235266,19.86234672,200.3,200.18,7.7]
[1756689235861,2.22234672,200.27,200.18,7.7]
[1756689243381,119.26,200.26,200.18,7.7]
[1756689244282,5.54163416,200.33,200.18,7.7]
[1756689244482,2.22234672,200.28,200.18,7.7]
[1756689245479,5.54163416,200.33,200.18,2.22234672]
[1756689245678,128.82234672,200.32,200.19,7.7]
[1756689245878,128.82234672,200.32,200.22,7.7]
[1756689247382,2.22234672,200.32,200.22,7.7]
[1756689247583,2.22234672,200.32,200.21,2.22234672]
[1756689247584,335.6,200.34,200.25,7.7]
[1756689247878,335.6,200.34,200.27,2.22234672]
[1756689248082,335.6,200.34,200.28,7.7]
[1756689248573,335.6,200.34,200.3,8.09]
[1756689248774,335.6,200.34,200.31,4.66512579]
[1756689248978,335.6,200.34,200.32,4.66512579]
[1756689249179,335.6,200.34,200.27,2.22234672]
[1756689249180,335.6,200.34,200.33,4.66512579]
[1756689252882,126.56,200.39,200.33,14.97747251]
[1756689253085,126.56,200.39,200.34,4.66512579]
[1756689253386,126.56,200.39,200.35,4.66512579]
[1756689253685,126.56,200.39,200.37,8.09]
[1756689253884,126.56,200.39,200.38,4.66512579]
[1756689254281,126.56,200.39,200.37,8.09]
[1756689254485,126.56,200.39,200.38,4.65746493]
[1756689254680,2.22234672,200.45,200.38,4.65746493]
[1756689254886,126.54,200.41,200.39,4.65746493]
[1756689255087,126.54,200.41,200.4,4.65746493]
[1756689255286,126.54,200.41,200.4,4.65455402]
[1756689255681,335.6,200.47,200.4,4.65455402]
[1756689255886,126.52,200.46,200.41,4.65455402]
[1756689256186,126.52,200.46,200.42,4.65455402]
[1756689256386,126.52,200.46,200.38,8.09]
[1756689256387,126.52,200.46,200.43,4.65455402]
[1756689256576,126.52,200.46,200.44,4.65455402]
[1756689256781,126.52,200.46,200.38,8.09]
[1756689256978,126.52,200.46,200.39,4.65198923]
[1756689257176,126.52,200.46,200.4,4.65198923]
[1756689257384,126.52,200.46,200.41,4.65198923]
[1756689257584,126.52,200.46,200.42,4.65198923]
[1756689257878,126.52,200.46,200.29,4.15119277]
[1756689257879,2.22234672,200.45,200.34,8.09]
[1756689258077,2.22234672,200.45,200.35,4.64913548]
[1756689258277,126.52,200.46,200.36,4.64913548]
[1756689258478,126.52,200.46,200.37,4.64913548]
[1756689258679,126.52,200.46,200.38,4.64913548]
[1756689258878,126.52,200.46,200.39,4.64913548]
[1756689259078,126.52,200.46,200.4,4.64913548]
[1756689259280,128.74234672,200.46,200.41,4.64913548]
[1756689259484,128.74234672,200.46,200.42,4.64913548]
[1756689259784,128.74234672,200.46,200.34,8.09]
[1756689259986,128.74234672,200.46,200.35,4.6451277]
[1756689260187,2.22234672,200.43,200.36,4.6451277]
[1756689260387,2.22234672,200.43,200.34,8.09]
[1756689260388,126.48,200.42,200.37,4.6451277]
[1756689260589,0.8686319,200.46,200.38,4.6451277]
[1756689260788,126.46,200.45,200.39,4.6451277]
[1756689260988,126.46,200.45,200.4,4.6451277]
[1756689261189,126.46,200.45,200.37,8.09]
[1756689261190,126.46,200.45,200.41,4.6451277]
[1756689261387,126.46,200.45,200.42,4.6451277]
[1756689261690,126.46,200.44,200.43,4.6451277]
[1756689262081,126.46,200.44,200.39,8.09]
[1756689262287,126.46,200.44,200.4,12.77253114]
[1756689262491,126.46,200.44,200.41,4.68253114]
[1756689262783,126.46,200.44,200.42,4.68253114]
[1756689262992,126.46,200.44,200.4,8.09]
[1756689263186,126.46,200.44,200.41,4.6827388]
[1756689263382,126.46,200.44,200.42,4.6827388]
[1756689263588,126.46,200.44,200.35,2.22234672]
[1756689263589,126.46,200.44,200.37,8.09]
[1756689263790,335.6,200.47,200.39,8.09]
[1756689264094,126.44,200.46,200.4,4.68168941]
[1756689264287,126.44,200.46,200.42,8.09]
[1756689264486,126.44,200.46,200.43,4.68168941]
[1756689264691,126.44,200.46,200.44,4.68168941]
[1756689264892,126.44,200.45,200.44,4.68168941]
[1756689265093,335.6,200.47,200.45,8.09]
[1756689265292,126.44,200.46,200.41,2.22234672]
[1756689265488,335.6,200.47,200.42,4.67315443]
[1756689265692,462.02,200.47,200.44,8.09]
[1756689265893,462.02,200.47,200.45,4.67315443]
[1756689266092,462.02,200.47,200.44,8.09]
[1756689266294,462.02,200.47,200.45,4.67099263]
[1756689266491,462.02,200.47,200.44,8.09]
[1756689266793,74.34626262,200.51,200.45,4.67162038]
[1756689267091,109.7,200.5,200.46,12.76162038]
[1756689267293,109.7,200.5,200.46,8.09]
[1756689268997,74.34626262,200.51,200.46,8.09]
[1756689269199,99.08,200.5,200.48,8.09]
[1756689269395,99.08,200.5,200.45,8.09]
[1756689269591,99.08,200.5,200.46,4.66178424]
[1756689269796,99.08,200.5,200.47,4.66178424]
[1756689269997,99.08,200.5,200.44,2.22234672]
[1756689270199,99.08,200.5,200.45,4.66123277]
[1756689270401,99.08,200.5,200.48,8.09]
[1756689270695,99.08,200.5,200.47,2.22234672]
[1756689270906,99.08,200.5,200.49,8.09]
[1756689273402,126.34,200.55,200.49,12.7387638]
[1756689273700,126.34,200.55,200.51,8.09]
[1756689273905,126.34,200.55,200.52,4.6487638]
[1756689274203,126.34,200.55,200.49,2.22234672]
[1756689274402,126.34,200.55,200.5,12.73237561]
[1756689274605,126.34,200.55,200.51,4.64237561]
[1756689274799,126.34,200.55,200.52,4.64237561]
[1756689275001,126.34,200.55,200.53,4.64217793]
[1756689275201,126.34,200.55,200.5,8.09]
[1756689275600,126.34,200.55,200.51,4.63913226]
[1756689275902,126.34,200.55,200.52,4.63913226]
[1756689276107,335.44,200.59,200.5,8.09]
[1756689276406,126.3,200.58,200.51,4.63701857]
[1756689276608,126.3,200.58,200.52,4.63701857]
[1756689276807,126.3,200.58,200.53,4.63701857]
[1756689277010,126.3,200.58,200.5,8.09]
[1756689277207,126.3,200.58,200.51,4.63681083]
[1756689277407,126.3,200.58,200.52,4.63681083]
[1756689277710,126.3,200.58,200.54,8.09]
[1756689278009,126.3,200.58,200.55,4.6328962]
[1756689278201,126.3,200.58,200.52,2.22234672]
[1756689278398,126.28,200.6,200.55,2.22234672]
[1756689278600,126.28,200.6,200.56,4.63076164]
[1756689278898,126.28,200.6,200.57,4.63076164]
[1756689279102,126.28,200.6,200.55,2.22234672]
[1756689279103,126.28,200.6,200.54,7.73]
[1756689279302,126.28,200.6,200.55,4.62677438]
[1756689279503,126.28,200.6,200.56,4.62677438]
[1756689279807,126.28,200.6,200.53,2.22234672]
[1756689280008,126.28,200.6,200.54,4.62829957]
[1756689280308,126.28,200.6,200.55,4.62829957]
[1756689280507,126.28,200.6,200.56,4.62829957]
[1756689280709,126.28,200.6,200.57,4.62829957]
[1756689281010,126.28,200.6,200.53,2.22234672]
[1756689281309,126.28,200.6,200.54,4.627852]
[1756689281503,126.28,200.6,200.55,4.627852]
[1756689281703,126.28,200.6,200.51,2.22234672]
[1756689281903,126.28,200.6,200.52,4.62805059]
[1756689282106,126.28,200.6,200.53,4.62805059]
[1756689282309,126.28,200.6,200.54,4.62805059]
[1756689282510,126.28,200.6,200.51,2.22234672]
[1756689282710,126.28,200.6,200.52,4.62787115]
[1756689282902,126.28,200.6,200.53,4.62787115]
[1756689283105,126.28,200.6,200.54,4.62787115]
[1756689283306,126.28,200.6,200.55,4.62787115]
[1756689283502,126.28,200.6,200.5,9.95234672]
[1756689283707,126.28,200.6,200.51,4.62624739]
[1756689284009,126.28,200.6,200.5,9.95234672]
[1756689284010,126.28,200.6,200.52,4.62624739]
[1756689284209,126.28,200.6,200.53,4.62624739]
[1756689284412,126.28,200.6,200.54,4.62624739]
[1756689284613,126.28,200.6,200.55,4.62624739]
[1756689284911,126.28,200.6,200.5,7.73]
[1756689285113,128.50234672,200.6,200.51,4.62689122]
[1756689285409,126.2,200.61,200.54,2.22234672]
[1756689285605,126.2,200.61,200.55,4.62689122]
[1756689285811,126.2,200.61,200.56,4.62689122]
[1756689286012,126.2,200.61,200.54,2.22234672]
[1756689286213,126.2,200.61,200.55,4.6240322]
[1756689286413,126.2,200.61,200.56,4.6240322]
[1756689286712,126.2,200.61,200.57,4.6240322]
[1756689286907,126.2,200.61,200.54,2.22234672]
[1756689287108,126.2,200.61,200.55,4.62554931]
[1756689287413,126.2,200.61,200.56,4.62554931]
[1756689287613,126.2,200.61,200.54,2.22234672]
[1756689287614,126.2,200.61,200.57,4.62554931]
[1756689287803,126.2,200.61,200.54,2.22234672]
[1756689288010,126.2,200.61,200.55,4.62745251]
[1756689288209,126.2,200.61,200.56,4.62745251]
[1756689288405,126.2,200.61,200.57,4.62745251]
[1756689288612,126.2,200.61,200.58,4.62745251]
[1756689288814,126.2,200.61,200.53,9.95234672]
[1756689289116,126.2,200.61,200.54,4.62879632]
[1756689289316,126.2,200.61,200.55,4.62879632]
[1756689289613,126.2,200.61,200.56,12.35879632]
[1756689289814,126.2,200.61,200.57,4.62879632]
[1756689290115,126.16,200.63,200.58,4.62879632]
[1756689290318,126.16,200.64,200.59,4.62879632]
[1756689290516,126.16,200.64,200.56,2.22234672]
[1756689290517,77.88439017,200.7,200.6,4.62879632]
[1756689290716,126.16,200.65,200.61,4.62879632]
[1756689290918,126.16,200.65,200.62,4.62879632]
[1756689291216,126.16,200.65,200.58,7.73]
[1756689291409,126.16,200.65,200.59,4.63438134]
[1756689291605,126.16,200.65,200.6,4.63438134]
[1756689291816,126.16,200.65,200.61,4.63438134]
[1756689292017,126.16,200.65,200.62,4.63438134]
[1756689292215,126.16,200.65,200.58,9.95234672]
[1756689292414,126.16,200.65,200.59,4.63605731]
[1756689292613,126.16,200.65,200.6,4.63605731]
[1756689292918,126.16,200.65,200.61,4.63605731]
[1756689293115,126.16,200.65,200.62,4.63605731]
[1756689293314,126.16,200.65,200.58,7.73]
[1756689293516,126.16,200.65,200.59,4.63753941]
[1756689293707,126.16,200.65,200.6,4.63753941]
[1756689293912,126.16,200.65,200.61,4.63753941]
[1756689294113,126.16,200.65,200.62,4.63883821]
[1756689294314,126.16,200.65,200.56,2.22234672]
[1756689294515,126.16,200.65,200.57,4.64319811]
[1756689294712,126.16,200.65,200.58,4.64319811]
[1756689294912,126.16,200.65,200.59,4.64319811]
[1756689295107,126.16,200.65,200.6,4.64319811]
[1756689295317,126.16,200.65,200.61,4.64319811]
[1756689295518,126.16,200.65,200.62,4.64319811]
[1756689295722,2.22234672,200.64,200.52,2.22234672]
[1756689296018,2.22234672,200.64,200.53,4.64464253]
[1756689296217,2.22234672,200.64,200.54,4.64464253]
[1756689296416,2.22234672,200.64,200.55,4.64464253]
[1756689296620,2.22234672,200.64,200.52,2.22234672]
[1756689296817,2.22234672,200.64,200.53,4.64742995]
[1756689297018,2.22234672,200.64,200.54,4.64742995]
[1756689297217,2.22234672,200.64,200.55,4.64742995]
[1756689297421,2.22234672,200.64,200.56,4.64742995]
[1756689297620,2.22234672,200.64,200.57,4.64742995]
[1756689297913,2.22234672,200.64,200.58,4.64742995]
[1756689298110,2.22234672,200.64,200.59,4.64742995]
[1756689298310,2.22234672,200.61,200.6,4.64742995]
[1756689298509,2.22234672,200.61,200.5,7.73]
[1756689298714,2.22234672,200.61,200.51,4.65266621]
[1756689298918,2.22234672,200.61,200.52,4.65266621]
[1756689299109,2.22234672,200.61,200.53,4.65266621]
[1756689299313,2.22234672,200.61,200.54,4.65266621]
[1756689299509,2.22234672,200.61,200.55,4.65266621]
[1756689299713,2.22234672,200.61,200.56,4.65266621]
[1756689300014,2.22234672,200.61,200.57,4.65266621]
[1756689300211,2.22234672,200.61,200.58,4.65266621]
[1756689300414,2.22234672,200.61,200.5,7.73]
[1756689300611,5.54163416,200.69,200.51,4.65449413]
[1756689300914,2.22234672,200.67,200.56,2.22234672]
[1756689301219,126.06,200.66,200.57,4.65449413]
[1756689301415,126.06,200.66,200.58,4.65449413]
[1756689301616,126.06,200.66,200.59,4.65449413]
[1756689301922,126.06,200.66,200.6,4.65449413]
[1756689302112,126.06,200.66,200.61,4.65449413]
[1756689302315,126.06,200.66,200.56,9.95234672]
[1756689302316,126.06,200.66,200.62,4.65449413]
[1756689302526,126.06,200.66,200.63,4.65114572]
[1756689302718,126.06,200.66,200.56,9.95234672]
[1756689302916,126.06,200.66,200.57,4.65081216]
[1756689303224,126.06,200.66,200.58,4.65081216]
[1756689303521,126.06,200.66,200.59,4.65081216]
[1756689303821,126.06,200.66,200.6,12.38081216]
[1756689304026,126.06,200.66,200.62,7.73]
[1756689304319,126.06,200.66,200.63,4.65081216]
[1756689304520,126.06,200.66,200.64,4.65081216]
[1756689304710,126.06,200.66,200.65,4.65081216]
[1756689304917,126.06,200.66,200.59,7.73]
[1756689305118,126.06,200.66,200.6,4.64871331]
[1756689305317,126.06,200.66,200.61,4.64871331]
[1756689305522,126.06,200.66,200.62,4.64871331]
[1756689305722,126.06,200.66,200.63,4.64871331]
[1756689305917,126.06,200.66,200.55,9.95234672]
[1756689306117,126.06,200.66,200.56,4.65339309]
[1756689306318,126.06,200.66,200.58,7.73]
[1756689306518,126.06,200.66,200.59,4.65667504]
[1756689306715,126.06,200.66,200.6,4.65667504]
[1756689307019,126.02,200.65,200.61,4.65667504]
[1756689307216,126.02,200.65,200.62,4.65667504]
[1756689307422,126.02,200.65,200.63,4.65667504]
[1756689307624,126.02,200.65,200.64,4.65667504]
[1756689308225,2.22234672,200.69,200.64,4.65667504]
[1756689308423,126.02,200.68,200.65,4.65667504]
[1756689308615,126.02,200.68,200.66,4.65667504]
[1756689308816,126.02,200.67,200.59,7.54]
[1756689309015,126.0,200.69,200.62,7.54]
[1756689309323,126.0,200.69,200.64,7.54]
[1756689309517,335.28,200.71,200.66,7.54]
[1756689309518,461.28,200.71,200.66,7.54]
[1756689309722,461.28,200.71,200.68,7.54]
[1756689310027,461.28,200.71,200.69,4.66273003]
[1756689310220,461.28,200.71,200.7,4.66273003]
[1756689310618,126.0,200.73,200.71,7.54]
[1756689310919,126.0,200.73,200.72,4.66273003]
[1756689311324,2.22234672,200.8,200.72,4.66273003]
[1756689311522,125.98,200.79,200.73,4.66273003]
[1756689311722,125.98,200.79,200.74,4.66273003]
[1756689311921,125.98,200.79,200.67,9.76234672]
[1756689312130,125.98,200.79,200.68,4.66121339]
[1756689312321,125.98,200.79,200.69,4.66121339]
[1756689312518,125.98,200.79,200.7,4.66121339]
[1756689312727,125.98,200.79,200.71,4.66121339]
[1756689312929,125.98,200.79,200.72,4.66121339]
[1756689313123,2.22234672,200.77,200.64,2.22234672]
[1756689313324,2.22234672,200.77,200.65,4.66696493]
[1756689313528,2.22234672,200.77,200.66,4.66696493]
[1756689313721,2.22234672,200.77,200.67,4.66696493]
[1756689313925,2.22234672,200.77,200.64,2.22234672]
[1756689313926,2.22234672,200.77,200.68,4.66333714]
[1756689314126,2.22234672,200.74,200.69,4.66333714]
[1756689314327,2.22234672,200.72,200.7,4.66333714]
[1756689314627,2.22234672,200.72,200.63,7.54]
[1756689314826,2.22234672,200.72,200.64,4.66748689]
[1756689315026,2.22234672,200.72,200.65,4.66748689]
[1756689315228,2.22234672,200.72,200.66,4.66748689]
[1756689315426,2.22234672,200.69,200.67,4.66748689]
[1756689315725,2.22234672,200.69,200.68,4.66748689]
[1756689316123,2.22234672,200.69,200.59,7.54]
[1756689316321,2.22234672,200.66,200.6,4.67185252]
[1756689316623,2.22234672,200.66,200.55,7.54]
[1756689316624,19.04,200.65,200.55,7.54]
[1756689316827,2.22234672,200.63,200.55,7.54]
[1756689317024,2.22234672,200.63,200.52,6.67341]
[1756689317226,2.22234672,200.6,200.52,6.67341]
[1756689317426,55.22,200.59,200.52,6.67341]
[1756689319426,101.2,200.6,200.53,7.54]
[1756689319636,101.2,200.59,200.52,6.67341]
[1756689321534,3.54632627,200.57,200.52,6.67341]
[1756689321931,3.54632627,200.54,200.52,6.67341]
[1756689322331,4.04632627,200.54,200.52,6.67341]
[1756689323933,8.31245124,200.6,200.52,6.67341]
[1756689323934,60.72,200.53,200.52,6.67341]
[1756689324136,3.54632627,200.57,200.52,6.67341]
[1756689324336,56.84,200.56,200.52,6.67341]
[1756689330738,3.54632627,200.54,200.52,6.67341]
[1756689330944,3.54632627,200.54,200.43,7.54]
[1756689331235,56.84,200.56,200.43,7.54]
[1756689331441,3.54632627,200.55,200.43,7.54]
[1756689331639,60.56,200.54,200.43,11.08632627]
[1756689331837,59.24,200.56,200.44,7.54]
[1756689333443,3.54632627,200.55,200.44,7.54]
[1756689335751,6.56,200.54,200.44,7.54]
[1756689336352,3.54632627,200.55,200.44,7.54]
[1756689336746,4.7,200.54,200.44,7.54]
[1756689337852,3.54632627,200.52,200.44,7.54]
[1756689338152,2.21831763,200.51,200.44,7.54]
[1756689340552,8.56,200.5,200.44,7.54]
[1756689341350,10.48,200.52,200.45,8.08]
[1756689341552,12.36,200.55,200.45,8.08]
[1756689341856,14.42,200.56,200.48,8.08]
[1756689344460,3.54636953,200.55,200.48,8.08]
[1756689344860,3.54636953,200.55,200.39,3.54636953]
[1756689345160,3.54636953,200.55,200.4,8.08]
[1756689345656,3.54636953,200.52,200.4,8.08]
[1756689345862,3.54636953,200.49,200.4,8.08]
[1756689346055,38.02,200.48,200.4,8.08]
[1756689348063,38.02,200.48,200.31,3.54636953]
[1756689348369,3.54636953,200.46,200.32,8.08]
[1756689348760,3.54636953,200.43,200.32,8.08]
[1756689349262,125.88,200.42,200.32,8.08]
[1756689351570,335.28,200.44,200.32,8.08]
[1756689351763,338.82636953,200.44,200.32,8.08]
[1756689351964,125.88,200.43,200.32,8.08]
[1756689352460,3.54636953,200.41,200.32,8.08]
[1756689352855,125.88,200.4,200.32,8.08]
[1756689353060,125.88,200.39,200.32,8.08]
[1756689353664,125.88,200.38,200.32,8.08]
[1756689355768,125.88,200.38,200.26,8.08]
[1756689356969,3.54636953,200.41,200.26,8.08]
[1756689357164,125.88,200.4,200.26,8.08]
[1756689358066,3.54636953,200.42,200.26,8.08]
[1756689358370,125.9,200.41,200.26,8.08]
[1756689359871,3.54636953,200.42,200.26,8.08]
[1756689360068,125.9,200.41,200.26,8.08]
[1756689360371,125.88,200.4,200.26,8.08]
[1756689361668,335.28,200.44,200.26,8.08]
[1756689361973,335.28,200.44,200.21,112.2604969]
[1756689361974,125.9,200.43,200.29,8.08]
[1756689362564,335.28,200.44,200.29,8.08]
[1756689362761,335.28,200.44,200.32,8.08]
[1756689362971,461.16,200.44,200.35,8.08]
[1756689363770,335.28,200.44,200.38,8.08]
[1756689363967,335.28,200.44,200.4,2.21787933]
[1756689364167,335.28,200.44,200.41,8.08]
[1756689365068,335.28,200.44,200.36,8.08]
[1756689365573,2.21787933,200.43,200.28,8.08]
[1756689365776,2.21787933,200.43,200.31,2.21787933]
[1756689366275,2.21787933,200.43,200.31,10.29787933]
[1756689366574,2.21787933,200.4,200.31,10.29787933]
[1756689366775,125.88,200.39,200.31,8.08]
[1756689366972,2.21787933,200.37,200.26,8.08]
[1756689367371,2.21787933,200.34,200.26,8.08]
[1756689367677,125.86,200.33,200.22,10.29787933]
[1756689367875,125.86,200.33,200.23,8.08]
[1756689368577,3.55440425,200.37,200.23,8.08]
[1756689368778,3.55440425,200.4,200.26,7.73]
[1756689368978,36.16,200.39,200.26,7.73]
[1756689370683,36.16,200.39,200.21,112.27575183]
[1756689370684,3.55440425,200.37,200.22,11.28440425]
[1756689371572,335.28,200.44,200.23,7.73]
[1756689371780,3.55440425,200.39,200.23,7.73]
[1756689372872,3.55440425,200.36,200.23,7.73]
[1756689373071,39.94,200.35,200.23,7.73]
[1756689373881,3.55440425,200.36,200.23,7.73]
[1756689374284,36.08,200.35,200.23,7.73]
[1756689379485,3.55440425,200.36,200.23,7.73]
[1756689379685,71.74,200.35,200.23,7.73]
[1756689380484,3.55440425,200.33,200.23,7.73]
[1756689381081,3.55440425,200.33,200.19,11.28440425]
[1756689381384,3.55440425,200.33,200.19,7.73]
[1756689383794,3.55440425,200.3,200.19,7.73]
[1756689384788,3.55440425,200.27,200.15,7.73]
[1756689385090,12.52,200.26,200.15,7.73]
[1756689386187,3.55440425,200.24,200.15,7.73]
[1756689388396,3.55440425,200.21,200.09,7.73]
[1756689389294,43.38,200.2,200.09,7.73]
[1756689391891,43.38,200.2,200.03,4.12336606]
[1756689392191,3.55440425,200.14,200.03,7.73]
[1756689392396,23.34,200.13,200.03,7.73]
[1756689393296,3.55440425,200.11,200.03,7.73]
[1756689393993,23.34,200.13,199.93,4.12336606]
[1756689393994,2.2269551,200.05,199.93,4.12336606]
[1756689394199,2.2269551,200.02,199.94,7.73]
[1756689395295,2.2269551,200.01,199.94,7.73]
[1756689395994,3.56589092,200.04,199.94,7.73]
[1756689397205,4.66,200.05,199.94,7.73]
[1756689397903,4.66,200.05,199.94,3.56589092]
[1756689398202,4.66,200.05,199.89,282.17154305]
[1756689398203,335.68,200.16,199.98,7.92]
[1756689398406,360.84589092,200.16,200.01,7.92]
[1756689398999,3.56589092,200.13,200.01,7.92]
[1756689399807,360.84589092,200.16,200.01,7.92]
[1756689400107,360.84589092,200.16,200.02,7.92]
[1756689400310,3.56589092,200.13,200.02,7.92]
[1756689402307,3.56589092,200.1,199.94,3.56589092]
[1756689402507,126.34,200.09,199.95,7.92]
[1756689403012,126.34,200.09,199.95,11.48589092]
[1756689403210,126.34,200.09,199.96,7.92]
[1756689405311,126.34,200.09,199.99,7.92]
[1756689405512,335.68,200.16,200.02,7.92]
[1756689406409,335.68,200.16,200.04,3.56589092]
[1756689406611,335.68,200.16,200.05,7.92]
[1756689409216,335.68,200.16,200.01,11.12]
[1756689409217,126.28,200.17,200.08,7.92]
[1756689410314,126.28,200.17,200.11,7.92]
[1756689410517,126.22,200.23,200.11,7.92]
[1756689411921,126.22,200.23,200.13,3.56589092]
[1756689412123,126.22,200.23,200.14,7.92]
[1756689412922,335.9,200.28,200.16,3.56589092]
[1756689413221,335.9,200.28,200.17,7.92]
[1756689414011,126.16,200.29,200.17,7.92]
[1756689416115,126.16,200.29,200.2,7.92]
[1756689418624,126.16,200.29,200.2,11.48589092]
[1756689419027,129.54589092,200.35,200.2,11.48589092]
[1756689420322,129.54589092,200.35,200.11,4.0883479]
[1756689420323,335.86,200.4,200.24,7.92]
[1756689420635,125.94,200.39,200.24,7.92]
[1756689421127,3.56589092,200.38,200.24,7.92]
[1756689422435,125.94,200.39,200.26,7.92]
[1756689424428,125.94,200.39,200.29,7.92]
[1756689424630,3.56589092,200.48,200.32,7.92]
[1756689424833,36.94,200.47,200.34,11.48589092]
[1756689426024,36.94,200.47,200.37,11.48589092]